bitfinex-derivatives/quotes_SOLF0:USTF0_20241231
["timestamp","ask_amount","ask_price","bid_price","bid_amount"]
[1735681731340,6.62690072,193.21,193.14,3.02]
[1735681731541,3.89220901,193.22,193.14,9.64690072]
[1735681731740,10.41844691,193.23,193.14,9.64690072]
[1735681731741,17.04534763,193.23,193.14,9.64690072]
[1735681731942,4.68656913,193.22,193.14,9.64690072]
[1735681732137,2.5929,193.19,193.14,9.64690072]
[1735681732440,3.89220901,193.23,193.18,6.62690072]
[1735681732639,10.41844691,193.24,193.2,6.62690072]
[1735681732834,10.41844691,193.24,193.2,9.64690072]
[1735681733040,14.30964058,193.25,193.2,9.64690072]
[1735681733235,10.41844691,193.25,193.2,9.64690072]
[1735681733440,13.01064691,193.25,193.21,2.5925]
[1735681733845,2.5922,193.25,193.21,2.5925]
[1735681734649,2.5922,193.25,193.22,2.5924]
[1735681735143,2.5922,193.25,193.21,2.5926]
[1735681735349,10.51790033,193.27,193.21,2.5926]
[1735681735644,2.5922,193.24,193.21,2.5926]
[1735681740849,2.5922,193.24,193.22,6.62690072]
[1735681742253,6.62690072,193.25,193.11,1.5606]
[1735681742554,6.62690072,193.25,193.18,6.62690072]
[1735681742854,6.62690072,193.25,193.19,3.02]
[1735681743154,2.5927,193.2,193.19,3.02]
[1735681746255,2.5926,193.21,193.19,3.02]
[1735681747349,3.89099961,193.25,193.2,6.62690072]
[1735681747653,10.41844691,193.26,193.22,6.62690072]
[1735681748049,2.5921,193.25,193.22,6.62690072]
[1735681749853,3.89042992,193.29,193.24,6.62690072]
[1735681750057,21.78788581,193.3,193.24,9.64690072]
[1735681750357,4.6840605,193.29,193.24,9.64690072]
[1735681750659,3.89042992,193.29,193.24,9.64690072]
[1735681751059,10.51733064,193.29,193.24,3.02]
[1735681751355,6.62690072,193.27,193.21,3.02]
[1735681751557,6.62690072,193.27,193.2,3.02]
[1735681751755,2.5924,193.23,193.2,3.02]
[1735681752455,2.5924,193.23,193.2,5.6127]
[1735681753653,2.5925,193.22,193.2,5.6127]
[1735681753852,6.62690072,193.25,193.2,3.02]
[1735681754062,10.51733064,193.25,193.2,3.02]
[1735681754563,6.62690072,193.25,193.2,3.02]
[1735681754762,18.00405353,193.25,193.2,3.02]
[1735681754962,10.41844691,193.24,193.2,3.02]
[1735681755155,14.30887683,193.24,193.2,3.02]
[1735681755361,3.89042992,193.24,193.2,3.02]
[1735681755561,14.30887683,193.25,193.2,9.64690072]
[1735681756260,10.41844691,193.25,193.2,9.64690072]
[1735681756459,14.30887683,193.26,193.21,2.5926]
[1735681757164,2.5923,193.24,193.22,2.5925]
[1735681757367,2.5923,193.24,193.2,9.64690072]
[1735681757868,2.592,193.26,193.22,6.62690072]
[1735681759570,2.592,193.26,193.24,2.5922]
[1735681760273,2.5917,193.28,193.25,5.612]
[1735681760971,2.5916,193.29,193.26,9.21870072]
[1735681761271,14.30857409,193.31,193.26,6.62690072]
[1735681761771,1.58818247,193.3,193.26,6.62690072]
[1735681761971,0.79408278,193.3,193.26,6.62690072]
[1735681762474,3.38558278,193.3,193.27,2.5918]
[1735681762675,0.79408278,193.3,193.26,6.62690072]
[1735681762967,0.79408278,193.3,193.25,3.02]
[1735681762968,0.79408278,193.3,193.29,2.5915]
[1735681763173,10.41844691,193.31,193.29,2.5915]
[1735681763975,16.8991663,193.32,193.29,2.5915]
[1735681764166,2.5913,193.31,193.28,6.62690072]
[1735681764368,2.5913,193.31,193.28,9.21850072]
[1735681764876,10.41844691,193.32,193.28,6.62690072]
[1735681765172,6.62690072,193.33,193.26,6.62690072]
[1735681765372,10.51632306,193.33,193.26,6.62690072]
[1735681766969,2.5916,193.29,193.26,9.21880072]
[1735681767273,6.62690072,193.31,193.26,3.02]
[1735681767866,0.79410866,193.3,193.26,3.02]
[1735681768075,2.5916,193.29,193.26,3.02]
[1735681768272,10.51632306,193.31,193.26,3.02]
[1735681768477,6.62690072,193.31,193.26,3.02]
[1735681768776,0.79420815,193.3,193.26,3.02]
[1735681768976,4.68363049,193.3,193.26,3.02]
[1735681769175,14.30786925,193.3,193.26,3.02]
[1735681769376,2.5918,193.27,193.26,3.02]
[1735681770478,14.30786925,193.3,193.26,3.02]
[1735681770779,2.5915,193.3,193.27,2.5917]
[1735681771072,14.30786925,193.31,193.26,3.02]
[1735681771276,0.79437747,193.3,193.26,3.02]
[1735681771483,7.42127819,193.3,193.26,3.02]
[1735681771782,10.51632306,193.3,193.26,3.02]
[1735681771976,2.5918,193.27,193.26,3.02]
[1735681773388,3.88942234,193.28,193.22,6.62690072]
[1735681773684,2.5923,193.24,193.23,3.02]
[1735681774184,2.5923,193.24,193.21,2.5926]
[1735681774482,2.5923,193.23,193.21,3.02]
[1735681774677,2.5923,193.23,193.2,9.21960072]
[1735681774873,2.5923,193.23,193.21,3.02]
[1735681775074,6.62690072,193.26,193.21,3.02]
[1735681775272,2.5925,193.22,193.21,3.02]
[1735681777285,2.5927,193.2,193.16,3.0769]
[1735681777489,2.5927,193.2,193.17,9.64690072]
[1735681778085,2.5927,193.2,193.17,12.24000072]
[1735681779383,28.43632513,193.24,193.17,9.64690072]
[1735681779587,2.5928,193.2,193.17,9.64690072]
[1735681779788,11.39049517,193.23,193.17,9.64690072]
[1735681779989,2.5926,193.22,193.17,9.64690072]
[1735681780188,11.3908497,193.22,193.17,9.64690072]
[1735681780391,3.88942234,193.22,193.17,9.64690072]
[1735681781182,2.5928,193.2,193.17,9.64690072]
[1735681781385,2.5928,193.2,193.17,12.24000072]
[1735681781686,2.5928,193.2,193.17,9.64690072]
[1735681782188,2.5929,193.19,193.17,9.64690072]
[1735681784297,2.5929,193.19,193.17,6.62690072]
[1735681784497,2.5929,193.19,193.17,9.64690072]
[1735681784698,2.5929,193.19,193.17,12.24000072]
[1735681785600,2.5929,193.19,193.17,9.64690072]
[1735681785902,2.593,193.18,193.17,9.64690072]
[1735681786495,2.593,193.18,193.17,3.02]
[1735681786697,10.51632306,193.22,193.15,3.02]
[1735681786897,0.79438766,193.21,193.15,3.02]
[1735681787393,6.62690072,193.2,193.14,9.64690072]
[1735681787699,2.5935,193.15,193.12,9.64690072]
[1735681788200,2.5935,193.14,193.12,3.02]
[1735681789704,2.5935,193.14,193.11,2.5939]
[1735681790898,6.62690072,193.18,193.12,2.5938]
[1735681791107,2.5934,193.15,193.12,9.22070072]
[1735681791299,3.88942234,193.19,193.14,6.62690072]
[1735681791499,14.30786925,193.2,193.15,2.5933]
[1735681791901,14.30786925,193.2,193.15,5.6133]
[1735681792098,14.30786925,193.2,193.15,3.02]
[1735681792305,20.93476997,193.2,193.15,3.02]
[1735681792503,3.88942234,193.19,193.15,3.02]
[1735681792703,2.5933,193.16,193.15,3.02]
[1735681796408,2.5935,193.15,193.12,9.22070072]
[1735681797206,2.5935,193.14,193.12,9.22070072]
[1735681798115,2.5937,193.13,193.11,3.02]
[1735681798409,10.51899865,193.18,193.11,3.02]
[1735681798613,2.5936,193.14,193.11,5.6138]
[1735681798812,6.62690072,193.18,193.11,2.5938]
[1735681799006,0.79371507,193.17,193.11,2.5938]
[1735681799810,0.79371507,193.17,193.1,9.64690072]
[1735681799811,2.5937,193.13,193.1,12.24090072]
[1735681800311,6.62690072,193.18,193.1,9.64690072]
[1735681800512,2.5936,193.14,193.11,2.5939]
[1735681800908,2.5938,193.13,193.1,12.24090072]
[1735681801113,6.62690072,193.16,193.1,6.62690072]
[1735681801511,2.5938,193.12,193.1,6.62690072]
[1735681803414,2.5938,193.12,193.1,9.22090072]
[1735681803815,6.62690072,193.16,193.1,6.62690072]
[1735681804012,3.89209793,193.18,193.13,2.5937]
[1735681804211,10.41844691,193.19,193.14,6.62690072]
[1735681805416,2.5932,193.17,193.15,2.5933]
[1735681808411,3.89217368,193.2,193.15,2.5933]
[1735681808607,2.5931,193.18,193.15,2.5933]
[1735681808915,10.41844691,193.2,193.16,2.5933]
[1735681809110,2.5929,193.19,193.16,2.5933]
[1735681810116,2.5929,193.19,193.17,2.5931]
[1735681811518,20.93700905,193.22,193.16,9.22010072]
[1735681811709,6.62690072,193.2,193.14,9.64690072]
[1735681813121,6.62690072,193.2,193.14,3.02]
[1735681813317,2.5934,193.16,193.14,3.02]
[1735681813511,2.5934,193.16,193.13,2.5936]
[1735681813512,6.62690072,193.18,193.12,9.64690072]
[1735681813716,6.62690072,193.16,193.11,3.02]
[1735681813913,2.5938,193.13,193.11,3.02]
[1735681814516,2.5938,193.13,193.11,5.6139]
[1735681814919,2.5938,193.12,193.11,3.02]
[1735681816720,2.5936,193.14,193.11,5.6139]
[1735681818221,2.5936,193.14,193.11,12.24080072]
[1735681818421,2.5936,193.14,193.12,2.5938]
[1735681819724,14.31010833,193.17,193.11,9.64690072]
[1735681819924,2.5938,193.13,193.11,9.64690072]
[1735681820119,10.51856214,193.16,193.11,3.02]
[1735681820318,28.43775948,193.16,193.11,3.02]
[1735681820517,3.89166142,193.15,193.11,3.02]
[1735681820717,3.89166142,193.15,193.11,9.64690072]
[1735681821018,14.31010833,193.16,193.11,9.64690072]
[1735681821222,28.4397279,193.16,193.11,3.02]
[1735681821418,3.89166142,193.15,193.11,3.02]
[1735681822126,2.5938,193.12,193.11,3.02]
[1735681824929,14.31010833,193.14,193.07,1.6034]
[1735681825230,28.44251014,193.14,193.07,11.25030072]
[1735681825530,14.31010833,193.13,193.07,11.25030072]
[1735681826133,3.89166142,193.13,193.07,11.25030072]
[1735681826328,10.51856214,193.14,193.08,2.5943]
[1735681826630,18.02371233,193.14,193.08,2.5943]
[1735681826831,28.44215924,193.14,193.08,2.5943]
[1735681827129,14.31010833,193.13,193.08,2.5943]
[1735681827425,2.594,193.11,193.08,2.5943]
[1735681835627,11.40797922,193.14,193.09,2.5941]
[1735681835628,2.5938,193.12,193.09,2.5941]
[1735681835832,2.5938,193.12,193.09,9.22100072]
[1735681837038,2.594,193.11,193.09,6.62690072]
[1735681837436,2.594,193.11,193.08,2.5943]
[1735681837634,2.5941,193.1,193.08,2.5943]
[1735681839145,2.5941,193.1,193.07,11.25030072]
[1735681839338,2.5941,193.1,193.07,13.84470072]
[1735681839844,2.5941,193.1,193.07,11.25030072]
[1735681840145,14.13925599,193.13,193.07,8.23030072]
[1735681840344,2.5943,193.08,193.07,6.62690072]
[1735681840536,6.62690072,193.11,193.06,3.02]
[1735681840740,10.51856214,193.11,193.06,3.02]
[1735681841247,6.62690072,193.11,193.05,6.62690072]
[1735681842133,10.51856214,193.11,193.05,6.62690072]
[1735681842334,2.5945,193.08,193.05,9.22160072]
[1735681847344,2.5945,193.07,193.05,6.62690072]
[1735681847843,6.62690072,193.09,193.01,5.6153]
[1735681848043,6.62690072,193.09,193.01,9.64690072]
[1735681848245,11.39902025,193.11,193.03,6.62690072]
[1735681848246,2.5944,193.08,193.03,6.62690072]
[1735681848550,10.41844691,193.1,193.04,2.5948]
[1735681848551,14.31010833,193.1,193.04,2.5948]
[1735681848750,14.31010833,193.1,193.03,6.62690072]
[1735681849048,3.89166142,193.1,193.06,2.5946]
[1735681849445,3.89166142,193.1,193.05,6.62690072]
[1735681849748,3.89166142,193.1,193.03,6.62690072]
[1735681849947,14.31010833,193.1,193.03,6.62690072]
[1735681850148,2.5944,193.08,193.05,2.5947]
[1735681854050,2.5941,193.1,193.07,2.5945]
[1735681854357,2.5941,193.1,193.07,9.22140072]
[1735681855548,3.8931001,193.12,193.07,6.62690072]
[1735681855752,14.31154701,193.13,193.07,6.62690072]
[1735681856153,16.90534701,193.13,193.07,6.62690072]
[1735681856454,16.90534701,193.13,193.09,6.62690072]
[1735681856852,2.5938,193.12,193.09,9.22100072]
[1735681858154,6.4869001,193.12,193.09,9.22100072]
[1735681858353,2.5938,193.12,193.09,9.22100072]
[1735681861058,2.5938,193.12,193.09,2.5941]
[1735681861957,2.594,193.11,193.09,2.5941]
[1735681871568,2.5942,193.1,193.07,9.22130072]
[1735681872065,2.5944,193.08,193.05,5.6146]
[1735681872967,2.5944,193.08,193.05,2.5946]
[1735681873159,10.41844691,193.09,193.08,2.5943]
[1735681873363,3.8931001,193.11,193.06,6.62690072]
[1735681873560,21.82967276,193.13,193.06,6.62690072]
[1735681873869,21.37747356,193.11,193.09,2.5941]
[1735681874071,3.8931001,193.1,193.09,2.5941]
[1735681874260,14.31154701,193.1,193.09,2.5941]
[1735681875168,10.41844691,193.1,193.09,2.5941]
[1735681875367,2.5938,193.12,193.09,2.5941]
[1735681875764,14.00521502,193.12,193.09,2.5941]
[1735681880470,2.594,193.11,193.09,2.5941]
[1735681886083,11.41141502,193.12,193.09,2.5941]
[1735681886284,6.4869001,193.12,193.09,2.5941]
[1735681886479,2.5938,193.12,193.09,2.5941]
[1735681886889,16.90534701,193.12,193.09,2.5941]
[1735681887486,6.4870001,193.11,193.09,2.5941]
[1735681888082,2.5939,193.11,193.09,2.5941]
[1735681888282,2.5939,193.11,193.08,3.02]
[1735681888486,21.83364756,193.13,193.08,3.02]
[1735681888685,2.5942,193.1,193.08,3.02]
[1735681889587,2.5942,193.1,193.08,5.6143]
[1735681894297,2.5939,193.12,193.08,3.02]
[1735681894696,2.5939,193.12,193.09,2.5941]
[1735681895996,2.5939,193.12,193.1,2.5941]
[1735681896897,16.90514701,193.14,193.11,2.5938]
[1735681897093,3.8931001,193.13,193.11,2.5938]
[1735681897598,24.42944578,193.15,193.12,2.5937]
[1735681897798,3.8931001,193.14,193.11,6.62690072]
[1735681898097,16.90494701,193.15,193.11,6.62690072]
[1735681899302,3.8931001,193.14,193.12,2.5938]
[1735681899496,2.5934,193.15,193.12,2.5938]
[1735681907598,2.5934,193.15,193.13,2.5937]
[1735681909506,3.8931001,193.17,193.13,2.5937]
[1735681909705,14.31154701,193.18,193.15,2.5933]
[1735681909906,14.31154701,193.18,193.15,9.22020072]
[1735681911508,2.5932,193.17,193.15,9.22020072]
[1735681911909,21.81674278,193.2,193.15,6.62690072]
[1735681912207,2.593,193.18,193.16,2.5932]
[1735681917307,2.593,193.18,193.15,9.22030072]
[1735681921116,11.39200553,193.21,193.15,6.62690072]
[1735681921321,3.89182951,193.21,193.15,6.62690072]
[1735681921820,2.5928,193.2,193.15,6.62690072]
[1735681922119,2.5928,193.2,193.17,6.62690072]
[1735681922920,2.5928,193.2,193.17,9.21990072]
[1735681928326,2.5928,193.2,193.17,6.62690072]
[1735681928523,14.31027642,193.24,193.17,6.62690072]
[1735681928725,14.31027642,193.24,193.19,6.62690072]
[1735681930123,10.41844691,193.24,193.19,6.62690072]
[1735681930325,3.89182951,193.24,193.19,6.62690072]
[1735681930529,2.5924,193.23,193.19,6.62690072]
[1735681931027,2.5924,193.23,193.2,2.5926]
[1735681931830,2.5924,193.23,193.19,6.62690072]
[1735681932823,14.31027642,193.25,193.19,6.62690072]
[1735681933025,14.31027642,193.25,193.21,6.62690072]
[1735681933225,10.41844691,193.25,193.21,6.62690072]
[1735681933931,10.41844691,193.25,193.23,2.5922]
[1735681934129,2.592,193.26,193.23,2.5922]
[1735681934321,21.37747356,193.29,193.24,2.5921]
[1735681934322,6.48198521,193.28,193.24,2.5921]
[1735681934526,16.91611738,193.28,193.24,2.5921]
[1735681935027,16.91611738,193.28,193.25,2.5921]
[1735681935223,2.5919,193.27,193.23,6.62690072]
[1735681935733,2.5919,193.27,193.24,2.5921]
[1735681943737,2.5922,193.24,193.22,5.6124]
[1735681943942,6.62690072,193.26,193.2,6.62690072]
[1735681944242,6.62690072,193.26,193.21,3.0]
[1735681945342,2.5924,193.23,193.21,3.0]
[1735681946346,10.43413217,193.28,193.21,3.0]
[1735681946347,2.5922,193.25,193.21,3.0]
[1735681947233,2.5922,193.25,193.22,2.5925]
[1735681948342,10.51753855,193.28,193.22,2.5925]
[1735681948545,2.5922,193.24,193.22,2.5925]
[1735681948734,2.5922,193.24,193.22,9.21940072]
[1735681949343,3.89063783,193.28,193.24,2.5922]
[1735681949549,14.32477,193.29,193.24,6.62690072]
[1735681950641,2.5918,193.27,193.25,2.592]
[1735681950839,2.5918,193.27,193.26,3.0]
[1735681955150,2.5916,193.29,193.26,5.5919]
[1735681955346,14.32477,193.3,193.26,3.0]
[1735681955848,21.82191393,193.3,193.26,3.0]
[1735681956249,2.5918,193.27,193.26,3.0]
[1735681968661,14.13622944,193.28,193.11,5.1877]
[1735681968861,6.62690072,193.25,193.17,6.62690072]
[1735681969069,2.5926,193.22,193.19,2.5927]
[1735681969863,2.5926,193.22,193.19,9.21960072]
[1735681972058,6.48323783,193.22,193.19,9.21960072]
[1735681972364,2.5926,193.22,193.19,9.21960072]
[1735681973963,2.5926,193.22,193.19,6.62690072]
[1735681974165,2.5926,193.22,193.2,2.5927]
[1735681974556,2.5926,193.22,193.21,3.0]
[1735681981472,2.5924,193.23,193.21,3.0]
[1735681981771,6.48303783,193.23,193.21,3.0]
[1735681982069,2.5924,193.23,193.21,3.0]
[1735681986473,6.48303783,193.23,193.21,3.0]
[1735681986674,2.5924,193.23,193.21,3.0]
[1735681988172,6.48303783,193.23,193.21,3.0]
[1735681988372,2.5924,193.23,193.21,3.0]
[1735681989277,6.48303783,193.23,193.21,3.0]
[1735681989573,2.5924,193.23,193.21,3.0]
[1735681990376,2.5924,193.23,193.21,5.5925]
[1735681992976,11.40038163,193.25,193.21,3.0]
[1735681993167,2.5925,193.22,193.21,3.0]
[1735681994273,11.40038163,193.25,193.21,3.0]
[1735681994579,2.5924,193.23,193.21,3.0]
[1735681998182,2.5927,193.21,193.18,2.593]
[1735682002185,6.48333783,193.21,193.18,2.593]
[1735682002383,2.5927,193.21,193.18,2.593]
[1735682003189,6.48333783,193.21,193.18,2.593]
[1735682003391,2.5927,193.21,193.18,2.593]
[1735682004193,2.5927,193.21,193.18,6.62690072]
[1735682004395,2.5927,193.21,193.19,2.5928]
[1735682004594,6.48333783,193.21,193.19,2.5928]
[1735682004793,3.89063783,193.21,193.19,2.5927]
[1735682004991,14.32477,193.21,193.18,6.62690072]
[1735682005295,14.32513714,193.21,193.2,6.62690072]
[1735682005492,10.43413217,193.21,193.2,6.62690072]
[1735682005795,14.32513714,193.22,193.2,9.21950072]
[1735682006692,10.43413217,193.22,193.2,9.21950072]
[1735682006892,16.91753714,193.23,193.2,9.21950072]
[1735682007089,16.91753714,193.23,193.21,2.5926]
[1735682012201,14.32513714,193.23,193.22,2.5925]
[1735682012403,21.85736855,193.23,193.22,3.0]
[1735682012998,10.43413217,193.23,193.22,12.21940072]
[1735682013495,5.57773217,193.23,193.22,12.21940072]
[1735682013702,21.37747356,193.25,193.24,2.5922]
[1735682013895,25.26747518,193.25,193.24,9.21910072]
[1735682014093,21.37747356,193.25,193.24,9.21910072]
[1735682014303,25.26743707,193.25,193.24,9.21910072]
[1735682014504,3.88996351,193.25,193.24,9.21910072]
[1735682014703,2.5919,193.27,193.24,9.21910072]
[1735682020809,2.5919,193.27,193.25,2.5921]
[1735682022809,2.5919,193.27,193.24,9.21910072]
[1735682028517,6.62690072,193.26,193.15,3.0577]
[1735682028715,6.62690072,193.22,193.16,9.62690072]
[1735682030120,2.5931,193.18,193.16,9.62690072]
[1735682032320,2.5931,193.17,193.16,3.0]
[1735682032520,14.07532594,193.21,193.16,3.0]
[1735682032722,10.18536243,193.21,193.15,9.22030072]
[1735682032914,10.18536243,193.21,193.16,3.0]
[1735682033114,3.88996351,193.21,193.16,3.0]
[1735682033517,2.593,193.18,193.16,3.0]
[1735682035124,2.5931,193.17,193.16,3.0]
[1735682035326,6.62690072,193.2,193.14,3.0]
[1735682035522,10.51686423,193.2,193.14,3.0]
[1735682035723,6.62690072,193.2,193.14,3.0]
[1735682036120,6.62690072,193.2,193.14,6.62690072]
[1735682036322,6.62690072,193.2,193.15,3.0]
[1735682036620,16.81226315,193.2,193.15,3.0]
[1735682036829,3.88996351,193.19,193.15,3.0]
[1735682037423,2.5934,193.16,193.15,3.0]
[1735682039825,2.593,193.18,193.15,3.0]
[1735682040026,6.62690072,193.2,193.15,3.0]
[1735682040328,16.81226315,193.2,193.15,3.0]
[1735682040532,3.88996351,193.19,193.15,3.0]
[1735682041027,6.62690072,193.2,193.15,3.0]
[1735682041532,2.5931,193.17,193.15,3.0]
[1735682047738,2.5931,193.17,193.15,5.5934]
[1735682047930,2.5931,193.17,193.15,3.0]
[1735682048935,2.5936,193.14,193.12,2.5938]
[1735682049139,2.5936,193.14,193.13,3.0]
[1735682050241,2.5935,193.15,193.13,3.0]
[1735682050834,2.5935,193.14,193.13,3.0]
[1735682056643,2.5935,193.14,193.12,9.62690072]
[1735682061742,2.5937,193.13,193.12,9.62690072]
[1735682063344,2.5937,193.13,193.12,3.0]
[1735682063947,2.5938,193.12,193.09,9.22110072]
[1735682064143,6.62690072,193.16,193.1,3.0]
[1735682064750,2.594,193.11,193.1,3.0]
[1735682066347,2.5939,193.12,193.1,3.0]
[1735682066953,2.5939,193.12,193.1,5.594]
[1735682067146,2.5939,193.12,193.11,6.62690072]
[1735682068048,2.5939,193.12,193.1,5.594]
[1735682068249,2.5939,193.12,193.11,6.62690072]
[1735682072054,2.5939,193.12,193.1,5.594]
[1735682072255,2.5939,193.12,193.1,12.22090072]
[1735682075662,2.5939,193.12,193.1,9.62690072]
[1735682076663,2.5939,193.12,193.1,12.22100072]
[1735682079461,2.5938,193.13,193.1,12.22100072]
[1735682080855,3.89243269,193.14,193.1,3.0]
[1735682081059,21.64130292,193.16,193.1,3.0]
[1735682081360,3.89243269,193.15,193.1,3.0]
[1735682081965,21.64130292,193.15,193.1,3.0]
[1735682082164,3.89243269,193.14,193.1,3.0]
[1735682082559,2.5939,193.11,193.1,3.0]
[1735682082760,21.64130292,193.14,193.1,3.0]
[1735682082966,2.5938,193.12,193.1,3.0]
[1735682085163,2.5937,193.13,193.11,6.62690072]
[1735682086467,2.5937,193.13,193.11,9.22080072]
[1735682091170,14.09391519,193.16,193.11,6.62690072]
[1735682091364,14.09391519,193.16,193.13,6.62690072]
[1735682091768,14.09391519,193.16,193.14,2.5935]
[1735682091972,14.09391519,193.16,193.15,3.0]
[1735682092468,10.2014825,193.16,193.15,3.0]
[1735682092670,2.5932,193.17,193.15,3.0]
[1735682093674,14.03370591,193.17,193.15,3.0]
[1735682094279,6.48563269,193.17,193.15,3.0]
[1735682094472,2.5932,193.17,193.15,3.0]
[1735682094674,14.09391519,193.18,193.15,3.0]
[1735682094871,21.64094171,193.18,193.15,3.0]
[1735682095178,3.89243269,193.17,193.15,3.0]
[1735682095575,6.48563269,193.17,193.15,3.0]
[1735682095775,14.03265921,193.17,193.15,3.0]
[1735682096472,2.5933,193.16,193.15,3.0]
[1735682105474,14.16759396,193.17,193.11,3.0]
[1735682105679,18.06002665,193.17,193.11,3.0]
[1735682105874,10.2014825,193.16,193.11,3.0]
[1735682106073,2.5937,193.13,193.11,3.0]
[1735682106476,2.5937,193.13,193.12,3.0]
[1735682111387,11.44190316,193.16,193.12,9.62690072]
[1735682111690,3.89243269,193.16,193.12,9.62690072]
[1735682111888,3.89243269,193.16,193.15,2.5934]
[1735682112389,80.31165503,193.19,193.16,2.5932]
[1735682112592,23.97037356,193.19,193.16,2.5932]
[1735682112790,23.97037356,193.19,193.17,3.0]
[1735682112991,3.89135284,193.18,193.17,3.0]
[1735682113192,14.14358581,193.18,193.17,3.0]
[1735682114085,12.84523297,193.18,193.17,3.0]
[1735682114286,2.593,193.18,193.17,3.0]
[1735682116993,6.62690072,193.19,193.12,3.0]
[1735682117191,6.62690072,193.16,193.1,2.594]
[1735682117390,6.62690072,193.16,193.11,3.0]
[1735682117888,6.62690072,193.14,193.03,1.4694]
[1735682118094,6.62690072,193.14,193.07,6.62690072]
[1735682118889,2.594,193.11,193.08,2.5943]
[1735682119284,6.62690072,193.12,193.03,1.4694]
[1735682119486,6.62690072,193.12,193.05,3.0]
[1735682119684,6.62690072,193.12,193.06,6.62690072]
[1735682120291,10.25223297,193.12,193.08,6.62690072]
[1735682120589,20.06153369,193.15,193.08,6.62690072]
[1735682120790,3.89256366,193.14,193.08,6.62690072]
[1735682121592,2.5937,193.13,193.1,2.594]
[1735682121787,2.5937,193.13,193.1,5.594]
[1735682122691,14.14479663,193.14,193.1,3.0]
[1735682122884,6.62690072,193.13,193.1,3.0]
[1735682123288,2.5939,193.11,193.1,3.0]
[1735682124593,3.89256366,193.13,193.1,3.0]
[1735682124794,2.5938,193.12,193.1,5.5941]
[1735682125088,2.5938,193.12,193.1,3.0]
[1735682126493,2.5938,193.12,193.1,5.5941]
[1735682127800,14.14479663,193.14,193.1,5.5941]
[1735682128001,2.5937,193.13,193.1,5.5941]
[1735682128193,6.48626366,193.13,193.1,5.5941]
[1735682128393,2.5937,193.13,193.1,5.5941]
[1735682130895,2.5938,193.12,193.1,5.5941]
[1735682132096,2.5938,193.12,193.1,3.0]
[1735682132695,10.51946438,193.15,193.1,3.0]
[1735682132903,6.62690072,193.11,193.07,3.0]
[1735682133903,2.5943,193.09,193.07,3.0]
[1735682134803,2.5947,193.06,193.03,2.5949]
[1735682135097,2.5947,193.06,193.04,3.0]
[1735682135500,2.5947,193.06,193.04,5.5948]
[1735682135698,2.5945,193.07,193.04,5.5948]
[1735682136703,10.51946438,193.09,193.04,2.5948]
[1735682136996,10.25223297,193.12,193.01,6.62690072]
[1735682136997,6.62690072,193.07,193.01,2.5953]
[1735682137302,6.62690072,193.07,193.01,5.5953]
[1735682137998,2.595,193.03,193.01,3.0]
[1735682138399,2.595,193.03,193.0,2.5954]
[1735682138599,2.595,193.03,193.0,5.5954]
[1735682138904,6.62690072,193.03,192.87,61.17097884]
[1735682139205,11.43438818,193.09,192.87,61.17097884]
[1735682139206,6.62690072,193.01,192.95,6.62690072]
[1735682139398,2.5956,192.99,192.95,9.22290072]
[1735682140103,2.5955,193.0,192.95,6.62690072]
[1735682140605,2.5955,193.0,192.97,6.62690072]
[1735682140797,2.5955,193.0,192.98,3.0]
[1735682142799,6.62690072,193.03,192.98,3.0]
[1735682143004,2.5956,192.99,192.98,3.0]
[1735682144810,2.5956,192.99,192.95,9.22290072]
[1735682145106,2.5956,192.99,192.95,12.22290072]
[1735682146408,2.5957,192.98,192.95,5.596]
[1735682146805,3.89500326,193.04,192.95,5.596]
[1735682146806,6.62690072,192.99,192.95,3.0]
[1735682147002,2.5959,192.97,192.95,3.0]
[1735682147407,2.5959,192.97,192.94,5.5962]
[1735682148906,6.62690072,192.99,192.93,6.62690072]
[1735682149110,2.596,192.96,192.94,3.0]